Cogmind - Beta 14 @@@ ROGUE MODE // 2024.08.13 @ 12:06:58 Player: Vinsi Result: Destroyed by H-61 Shepherd with Heavy Assault Cannon Performance ------------- Evolutions (2) 1000 Regions Visited (3) 600 Robots Destroyed (19) 95 Value Destroyed (442) 442 Prototype IDs (2) 40 Alien Tech Used (0) 0 Bonus (6) 6 TOTAL SCORE: 2183 Bonus ------- High Alert Combat Kills 6 Cogmind --------- Core Integrity 0/550 Matter 21/300 Energy 99/100 System Corruption 0% Temperature Cool (0) Movement Core (50) Location -8/Materials Parts ------- > --- POWER (1) -------- (None) > --- PROPULSION (3) --- (None) > --- UTILITY (4) ------ Improved Terrain Scan Processor Improved Targeting Computer > --- WEAPON (3) ------- (None) > --- INVENTORY (5) ---- Flight Unit Flight Unit ECM Suite Improved Light Cannon Peak State ------------ > --- POWER ------------ Light Ion Engine > --- PROPULSION ------- Airjet Airjet > --- UTILITY ---------- Improved Terrain Scanner Improved Terrain Scan Processor Improved Targeting Computer Particle Charger > --- WEAPON ----------- Heavy EM Pulse Gun Heavy Assault Rifle Assault Cannon > --- INVENTORY -------- Flight Unit Flight Unit Improved Light Cannon [Rating: 25] Favorites ----------- Power Light Ion Engine Engine Light Ion Engine Propulsion Airjet Wheel Compact Wheel Hover Unit Airjet Flight Unit Flight Unit Utility Improved Targeting Computer Device Improved Terrain Scanner Storage Huge Storage Unit Processor Improved Targeting Computer Protection Light Armor Plating Weapon Heavy Assault Rifle Energy Gun Heavy EM Pulse Gun Ballistic Gun Heavy Assault Rifle Ballistic Cannon Assault Cannon Launcher Grenade Launcher Impact Weapon Great Maul Build | -11 -10 -9 -8 ------- Run | Yrd Mat Mat Mat Slots Evolved 4 | . . 2 2 Power . | . . . . Propulsion 1 | . . . 1 Utility 2 | . . 1 1 Weapon 1 | . . 1 . Parts Attached 28 | 5 3 8 12 Power 2 | 1 1 . . Engine 2 | 1 1 . . Core . | . . . . Reactor . | . . . . Propulsion 10 | 2 . 4 4 Treads . | . . . . Leg . | . . . . Wheel 2 | 2 . . . Hover 4 | . . 2 2 Flight 4 | . . 2 2 Utility 7 | . 1 1 5 Device 2 | . . . 2 Storage 1 | . . . 1 Processor 3 | . 1 1 1 Hackware . | . . . . Protection 1 | . . . 1 Artifact . | . . . . Weapon 9 | 2 1 3 3 Energy Gun 1 | . . . 1 Energy Cannon . | . . . . Ballistic Gun 4 | 2 . 2 . Ballistic Cannon 2 | . . 1 1 Launcher 1 | . 1 . . Special Weapon . | . . . . Impact Weapon 1 | . . . 1 Slashing Weapon . | . . . . Piercing Weapon . | . . . . Special Melee Weapon . | . . . . Unidentified Prototypes . | . . . . Parts Lost 12 | . 6 1 5 Power 2 | . 1 . 1 Propulsion 3 | . 2 1 . Utility 2 | . . . 2 Weapon 5 | . 3 . 2 Highest Loss Streak 6 | . 6 1 5 To Critical Strikes . | . . . . Average Slot Usage (%) 77 | . 72 68 82 Engine 9 | . 11 11 8 Wheel 4 | . 21 . . Hover 9 | . . 6 15 Flight 3 | . . 8 1 Device 6 | . . . 12 Processor 17 | . 12 21 18 Energy Gun 3 | . . . 6 Ballistic Gun 13 | . 25 13 9 Ballistic Cannon 6 | . . 7 8 Peak Build Rating 25 | 5 6 14 25 Average Rating 14 | 3 5 9 21 On Entrance 4 | . 5 2 12 Naked Turns . | . . . . Heaviest Build 18 | 5 7 13 18 Greatest Support 32 | 32 32 14 16 Greatest Overweight (x) 3 | . 2 1 3 Average Overweight (x) . | . . . . Largest Inventory Capacity 25 | 5 5 5 25 Average Capacity 5 | 5 5 5 5 Most Carried 5 | 5 2 3 5 Average Carried 2 | . 1 . 3 Final Capacity 5 | 5 5 5 5 Final Carried 4 | . . 2 4 Class Distribution -------------------- 52% | Gunner 38% | Mutant 9% | Skirmisher Dominant Class ---------------- Mutant | -10/Materials Gunner | -9/Materials Gunner | -8/Materials Resources | -11 -10 -9 -8 ----------- Run | Yrd Mat Mat Mat Matter Collected 413 | 219 44 113 37 Remotely . | . . . . Salvage Created 478 | . 136 95 247 Parts 38 | . 8 7 23 Haulers Intercepted . | . . . . Recyclers Shooed . | . . . . Parts Field Recycled . | . . . . Retrieved Matter . | . . . . Parts Self-Destructed . | . . . . Prevented . | . . . . Kills | -11 -10 -9 -8 ------- Run | Yrd Mat Mat Mat Combat Hostiles Destroyed 19 | . 4 5 10 Guns 10 | . 3 3 4 Cannons 5 | . . 2 3 AOE 4 | . 1 . 3 Classes Destroyed 4 | . 2 . 2 Swarmer 10 | . 1 3 6 Cutter 1 | . . . 1 Grunt 5 | . 3 2 . Sentry 3 | . . . 3 Best Kill Streak 5 | . 4 5 5 Combat Bots Only 5 | . 4 5 5 Max Kills in Single Turn 2 | . 1 1 2 Gunslinging . | . . . . Exploded 2 | . 1 . 2 Melee . | . . . . Uniques/NPCs Destroyed . | . . . . Combat | -11 -10 -9 -8 -------- Run | Yrd Mat Mat Mat Hostile Shots Fired 182 | . 48 39 95 Missed 57 | . 12 14 31 Damage Taken 1778 | . 458 220 1100 Core 736 | . 119 43 574 Absorbed by Shields . | . . . . Core Remaining (%) 80 | 100 52 89 . Volleys Fired 48 | 5 15 10 18 Largest 3 | 2 2 3 3 Hottest 112 | 40 50 85 112 Shots Fired 99 | 10 24 24 41 Gun 68 | 10 21 14 23 Cannon 28 | . . 10 18 Launcher 3 | . 3 . . Special . | . . . . Kinetic 86 | 10 21 24 31 Thermal . | . . . . Explosive 3 | . 3 . . Electromagnetic 10 | . . . 10 Robot Hit Streak 15 | 1 5 6 15 Robot Miss Streak 3 | 1 3 2 2 Penetration Max . | . . . . Secondary Targets 1 | . 1 . . Max Gunslinging Chain 1 | . 1 . . Shots Hit Robots 49 | 1 13 9 26 Core Hits 24 | 1 5 6 12 Critical Kills 1 | . 1 . . Critical Parts Destroyed 1 | . . 1 . Critical Strikes 4 | . 1 1 2 Destroy 2 | . 1 1 . Blast 2 | . . . 2 Melee Attacks 2 | . . . 2 Impact 2 | . . . 2 Slashing . | . . . . Piercing . | . . . . Sneak Attacks . | . . . . Combat Hostiles . | . . . . Follow-up Attacks . | . . . . Damage Inflicted 1056 | 7 155 248 646 Guns 444 | 7 98 125 214 Cannons 380 | . . 123 257 Explosions 187 | . 57 . 130 Melee 45 | . . . 45 Ramming . | . . . . Kinetic 712 | 7 98 248 359 Thermal 130 | . . . 130 Explosive 57 | . 57 . . Electromagnetic 112 | . . . 112 Impact 45 | . . . 45 Slashing . | . . . . Piercing . | . . . . Highest Corruption . | . . . . Average Corruption . | . . . . Corruption Purged . | . . . . Corruption Blocked . | . . . . Overload Shots . | . . . . Overflow Damage 53 | . 51 2 . Projectiles 2 | . . 2 . Explosions 51 | . 51 . . Melee . | . . . . Knockbacks 3 | . . 1 2 Impact 1 | . . . 1 Kinetic 2 | . . 1 1 Secondary . | . . . . Self-Inflicted Damage 110 | . 110 . . Shots 4 | . 4 . . Rammed . | . . . . Targets Rammed . | . . . . Kicked . | . . . . Crushed . | . . . . Highest Temperature 122 | . 10 108 122 Average Temperature 38 | . 4 51 40 Received Heat Transfer 342 | . 108 27 207 Siege Activations . | . . . . Robots Corrupted . | . . . . Combat Hostiles . | . . . . Parts Fried . | . . . . Impact Corruptions . | . . . . Robots Melted . | . . . . Combat Hostiles . | . . . . Parts Melted . | . . . . Heat Transferred 200 | . . . 200 Parts Sabotaged . | . . . . Parts Stolen . | . . . . Parts Stripped . | . . . . Power Chain Reactions 2 | . . . 2 Alert | -11 -10 -9 -8 ------- Run | Yrd Mat Mat Mat Peak Influence 435 | . 170 336 435 Initial 141 | . . 71 141 Average 182 | . 23 237 237 Maximum Alert Level 2 | . . 1 2 Low Security (%) 54 | 100 100 37 39 Level 1 40 | . . 62 50 Level 2 4 | . . . 9 Level 3 . | . . . . Level 4 . | . . . . Level 5 . | . . . . High Security . | . . . . Max Security . | . . . . Squads Dispatched 5 | . 2 1 2 Investigation 1 | . 1 . . Extermination . | . . . . Reinforcement 4 | . 1 1 2 Assault . | . . . . Garrison . | . . . . Intercept . | . . . . Searches Triggered . | . . . . Construction Impeded . | . . . . Haulers Reinforced . | . . . . Active Scanning Responses . | . . . . Cargo Convoy Interrupts . | . . . . Stealth | -11 -10 -9 -8 --------- Run | Yrd Mat Mat Mat Distress Signals 3 | . 2 . 1 Communications Jammed . | . . . . Distress Signals . | . . . . Times Spotted 45 | . 12 16 17 Peak Tracking Total 9 | . 9 8 8 Tactical Retreats 7 | . 3 3 1 Traps | -11 -10 -9 -8 ------- Run | Yrd Mat Mat Mat Traps Triggered 1 | . 1 . . Indirectly . | . . . . Trap Hack Attempts . | . . . . Triggered . | . . . . Disarmed . | . . . . Reprogrammed . | . . . . Reused . | . . . . Traps Extracted . | . . . . Installed . | . . . . Triggered . | . . . . Machines | -11 -10 -9 -8 ---------- Run | Yrd Mat Mat Mat Machines Disabled 2 | . 2 . . Max in Single Turn 2 | . 2 . . Machines Repaired . | . . . . Machines Dismantled . | . . . . Machines Sabotaged . | . . . . Overloaded Fab Kills . | . . . . Hacking | -11 -10 -9 -8 --------- Run | Yrd Mat Mat Mat Machines Accessed 6 | . 2 2 2 Terminals 5 | . 1 2 2 Fabricators . | . . . . Repair Stations . | . . . . Recycling Units 1 | . 1 . . Scanalyzers . | . . . . Garrison Access . | . . . . Total Hacks 13 | . 4 5 4 Successful 11 | . 3 5 3 Failed 2 | . 1 . 1 Catastrophic . | . . . . Database Lockouts . | . . . . Manual . | . . . . Terminals 11 | . 2 5 4 Fabricators . | . . . . Repair Stations . | . . . . Recycling Units 2 | . 2 . . Scanalyzers . | . . . . Garrison Access . | . . . . Terminal Hacks 10 | . 2 5 3 Record 3 | . 1 . 2 Robot Analysis 1 | . . 1 . Prototype ID Bank 1 | . . 1 . Terminal Index 1 | . . 1 . Alert Level 1 | . . 1 . Maintenance Status 1 | . . 1 . Reinforcement Status 1 | . . . 1 Zone Layout 1 | . 1 . . Fabricator Hacks . | . . . . Repair Station Hacks . | . . . . Recycling Unit Hacks 1 | . 1 . . Process 1 | . 1 . . Scanalyzer . | . . . . Garrison Access Hacks . | . . . . Unauthorized Hacks . | . . . . Terminals . | . . . . Fabricators . | . . . . Repair Stations . | . . . . Recycling Units . | . . . . Scanalyzers . | . . . . Garrison Access . | . . . . Data Cores Recovered . | . . . . Used . | . . . . Hacking Detections 1 | . . . 1 Full Trace Events . | . . . . Feedback Events . | . . . . Feedback Blocked . | . . . . Robot Schematics Acquired . | . . . . Robots Built . | . . . . Authchips . | . . . . Time . | . . . . Total Robot Build Rating . | . . . . Part Schematics Acquired . | . . . . Parts Built . | . . . . Authchips . | . . . . Time . | . . . . Total Part Build Rating . | . . . . Parts Repaired . | . . . . Time . | . . . . Parts Recycled . | . . . . Recycled Matter 16 | . 16 . . Retrieved Matter . | . . . . Retrieved Components . | . . . . Parts Scanalyzed . | . . . . Part Schematics Acquired . | . . . . Parts Damaged . | . . . . Bothacking | -11 -10 -9 -8 ------------ Run | Yrd Mat Mat Mat Used RIF Installer . | . . . . Robots Hacked . | . . . . Non-combat . | . . . . Combat . | . . . . Robot Hacks Applied . | . . . . Relay Couplers Released . | . . . . Fabnet Peak Effective % . | . . . . Robots Rewired . | . . . . Allies Hacked . | . . . . Hacks Repelled . | . . . . Allies | -11 -10 -9 -8 -------- Run | Yrd Mat Mat Mat Total Allies . | . . . . Largest Group . | . . . . Highest-Rated Group . | . . . . Highest-Rated Ally . | . . . . Total Orders . | . . . . Ally Attacks . | . . . . Total Damage . | . . . . Kills . | . . . . Allies Corrupted . | . . . . Allies Melted . | . . . . Intel | -11 -10 -9 -8 ------- Run | Yrd Mat Mat Mat Robot Analysis Total 1 | . . 1 . Derelict Logs Recovered . | . . . . Drone Launches . | . . . . Drone Recoveries . | . . . . Exploration | -11 -10 -9 -8 ------------- Run | Yrd Mat Mat Mat Turns Passed 816 | 53 151 193 419 Spaces Moved 563 | 40 113 171 239 Core 95 | 18 14 41 22 Treads . | . . . . Legs . | . . . . Wheels 121 | 22 99 . . Hover 271 | . . 70 201 Flight 76 | . . 60 16 Fastest Speed 50 | 50 50 50 50 Average Speed 97 | 77 96 83 110 Slowest Speed 200 | 100 150 120 200 Overloaded Moves . | . . . . Propulsion Burnouts . | . . . . Robots Hopped . | . . . . Cave-ins Triggered . | . . . . Exploration Rate (%) 18 | 3 25 19 27 Regions Visited 3 Branch Regions . Pre-discovered Areas . | . . . . Known Exits Taken . | . . . . Unknown Exits Taken 3 | 1 1 1 . Scrap Searched . | . . . . Spaces Dug 13 | . 12 . 1 Terrain Destroyed 75 | . 63 . 12 Melee . | . . . . Projectile 7 | . . . 7 AOE 68 | . 63 . 5 Terrain Rammed . | . . . . Walls Destroyed . | . . . . Machines Disabled . | . . . . Actions | -11 -10 -9 -8 --------- Run | Yrd Mat Mat Mat Total 747 | 54 134 202 357 Wait 73 | . 1 3 69 Move 560 | 39 112 170 239 Hop . | . . . . Pick Up 28 | 5 3 10 10 Fast Attach 1 | . . . 1 Attach 21 | 5 3 7 6 Detach 2 | . . . 2 Swap 6 | . . 1 5 Drop 6 | . . 1 5 Fire 48 | 5 15 10 18 Melee 2 | . . . 2 Ram . | . . . . Kick . | . . . . Crush . | . . . . Escape Stasis . | . . . . Rewire . | . . . . Trap . | . . . . Miscellaneous . | . . . . Route ------- -11/Scrapyard -10/Materials -9/Materials -8/Materials History --------- Turn | Location | Event 2 | -11/Scrapyard | Met Revision 17 7 | -11/Scrapyard | Discovered new exit (range 15) 54 | -11/Scrapyard | Entered Materials 203 | -10/Materials | Discovered new exit (range 4) 205 | -10/Materials | Entered another Materials area 205 | -9/Materials | Evolved 2 slots: Utility x1, Weapon x1 231 | -9/Materials | Lost 6 parts (1p2n3w) 252 | -9/Materials | Discovered new exit (range 16) 398 | -9/Materials | Entered another Materials area 398 | -8/Materials | Evolved 2 slots: Propulsion x1, Utility x1 558 | -8/Materials | Build established: Gunner 800 | -8/Materials | Core integrity fell below 50% 813 | -8/Materials | Core integrity fell below 20% 817 | -8/Materials | Destroyed by H-61 Shepherd with Heavy Assault Cannon Last Messages --------------- C-17 Slicer destroyed. Acquired 16 matter. M-13 Machinist repairs Surge Thruster. U-05 Engineer builds a Wall. Penetrated by Slug. U-05 Engineer builds a Wall. M-13 Machinist repairs Surge Thruster. Assault Cannon destroyed. U-05 Engineer builds a Wall. U-05 Engineer destroyed. Knocked back. C-17 Slicer knocked back. R-06 Scavenger collects Wheel. Critical hit (Burn: +37). Great Maul severed. Acquired 7 matter. M-13 Machinist repairs Lgt. Nuclear Core. Slug penetrates Wall. Imp. Terrain Scanner destroyed. Knocked back. Map ----- +----------------------------------------------------+ | ???????????????##???##??##????#??##?###??#?##????? | | ?????????????????????#???#?#?###???##?###???????#? | | ????????????#??#?#?#?##??#??#??#?##???##?##???#??? | | ??????????? ???##########################??#??#??? | | ????????? ???#?# # ! #??####?####??? | | ???????????????# """ "" # #??#??##???#?## | | ?????????"?????# """ """# ##??#??##??##?? | | ???????????? ??# """ S"# """ #######?#?##?#? | | ??????????????## #%""" %#??###??????### | | ???????? ??? / + # "" ###?##?#??###?# | | ??????????? ??# = + "T" ##?########?#?? | | ?????#??+??#???# === # """ #####?####?#??# | | ?????? ##########+########Y#####?####?##?#?##? | | ?????? % % %!r ###########??????? | | ?????? H%!m %%% = % ##????#? | | ?????? /##+######%#####??# | | ?????? ##############Y ## * ##%#?##?### | | ???????? ??##?#?#???#?## c ## ! ## ######## | | ??????????? ?? ?#?##?## ##"" ! ## ######?# | | ???????? ?????"???###?## ##"Y %!=## ######## | | ??????????????? ???#?### ##""[!!!+ ##?#?##? | | ????????? ?????? ??##??## ## !%%## ##?#?### | | ????????????? ???#?##???# ####### ## #??##### | | ???????????????? #?#?#?## #######"## #?##?### | | ?????????????##?#?#??#?## % #"+#?######## #?###### | | ??????????????# ?#?####?#@ #" "" ### #?###### | | ???????????????????#???## ## ""S ? ### ### | | ?????????????????????##? # "" ?# ] # " == | | ???????????????????? ? # # # T =] | | ??????????????????????? + ? ??+ T + " =] | | ??????????????????????? # "?" # # % | | ??????????????????????## #? "?"?# # = ! | | ???????????????????????##### #? ""??### #######% | | ???????????????????????????# # ????? ?## ######## | | ?????????????????????????#?? #??####+??## ##??#??# | | ?????????????????????#????## #???### ##?# ####??## | | ??????????????????????#????? ##?##?# #### ###?#?## | | ?????????????????????????#?? #?##??# ##?# ####?##? | | ?????????????????????????### ??##?## ##?# ##??##?# | | ???????????????????#??#????? ###### ### #?###### | | ?????????????????#??#?###?## T ###?###? | | ???????????????????##???#?## ###### ### #####?## | | ?????????????????#?#??????## #??######### #?#??#?? | | ??????????????????????##?### #??####?#### ##???#?# | | ???????????????????#???##### #####?######+####??## | | ?????????????????????#?#?#?# ##?#### #??#? | | ???????????#???#??###???#### ####?##] ##??? | | ???????????#?????##?###?#### ####### #?### | | ??????????????#????#???#?#?# ####### //! ##??# | | ????????????????##?#?#?#?### ####### /!! """ ##??# | +----------------------------------------------------+ Best States ------------- Heat Dissipation 31 Energy Generation 10 Energy Capacity 125 Matter Stores 297 Matter Capacity 300 Sight Range 16 Terrain Scan Range 16 Terrain Scan Density 110 Armor Coverage 150 Evasion (%) 53 Targeting Accuracy 11 Particle Charging 15 Item Schematics ----------------- None Robot Schematics ------------------ None Fabricated ------------ Nothing Alien Tech Used ----------------- None Achievements -------------- Omniscient Cartographer Challenges ------------ None Game ------ Seed VisualServoSword Manual? 0 Play Time 00:16:38 Cumulative 4.0 hours Start 2024.08.13 @ 11:52:59 End 2024.08.13 @ 12:06:58 Sessions 1 Manual Loads 0 Difficulty Rogue Special Mode None Game No. 11 Rogue 11 Adventurer 0 Explorer 0 Win Type - Total 0 Types 0/0/0/0/0/0/0/0/0 Lore% 3 Gallery% 10 Achievement% 10 Wizard Run 0 Options --------- Layout 1 ASCII 0 Keyboard 0 Movement Mouse Keybinds 0 Fullscreen 2 Font 32/SmallcapsGlow Map View 50x40 Zoom Use 0% Tactical HUD 0 Map Filters NONE Filters NONE Steam 1 RUN: 499b6239-f087-4112-b83a-0164a2661f9e